[Event "HUN-ch U8-U18 2019"]
[Site "Balatonlelle"]
[Date "2019.06.24"]
[Round "4.13"]
[White "Papp, Levente"]
[Black "Bohus, Adam"]
[Result "1-0"]
[ECO "A01"]
[WhiteElo "2350"]
[BlackElo "2196"]
[Annotator "NA RC"]
[PlyCount "63"]
[EventDate "2019.06.21"]
[EventType "swiss"]
[EventCountry "HUN"]
[SourceTitle "playchess.com"]
[Source "ChessBase"]
[SourceQuality "1"]
[TimeControl "40/5400+30:1800+30"]

1. b3 {[%emt 0:00:03]} d5 {[%emt 0:01:10]} 2. Bb2 {[%emt 0:00:07]} Bg4 {[%emt 0:00:13]} 3. Nf3 {[%emt 0:03:54]} Nd7 {[%emt 0:12:12]} 4. e3 {[%emt 0:02:50]} e5 {[%emt 0:11:18]} 5. h3 {[%emt 0:05:56]} Bxf3 {[%emt 0:00:37]} 6. Qxf3 {[%emt 0:00:02]} Ngf6 {[%emt 0:07:42]} 7. g4 {[%emt 0:07:18]} h6 {[%emt 0:13:10]} 8. h4 {[%emt 0:02:36]} e4 {[%emt 0:03:50]} 9. Qg2 {[%emt 0:00:54]} Qe7 {[%emt 0:07:19]} 10. Be2 {[%emt 0:05:51]} Qe6 {[%emt 0:05:33]} 11. d4 {[%emt 0:07:38]} exd3 {[%emt 0:04:50]} 12. cxd3 {[%emt 0:00:09]} Bb4+ {[%emt 0:00:05]} 13. Nd2 {[%emt 0:01:07]} O-O-O {[%emt 0:07:28]} 14. g5 hxg5 {[%emt 0:05:20]} 15. hxg5 {[%emt 0:07:44]} Rxh1+ {[%emt 0:00:12]} 16. Qxh1 {[%emt 0:00:03]} Ng4 {[%emt 0:09:15]} 17. Qh4 {[%emt 0:01:30]} Bxd2+ {[%emt 0:01:59]} 18. Kxd2 {[%emt 0:00:04]} Nge5 {[%emt 0:00:04]} 19. Qh7 {[%emt 0:21:27]} g6 20. Qh4 {[%emt 0:00:14]} Qf5 {[%emt 0:05:07]} 21. Qf4 {[%emt 0:00:07]} Qxf4 {[%emt 0:01:38]} 22. exf4 {[%emt 0:00:02]} Nc6 {[%emt 0:00:05]} 23. Rh1 {[%emt 0:01:24]} f6 {[%emt 0:01:47]} 24. gxf6 {[%emt 0:00:50]} Rf8 {[%emt 0:00:01]} 25. Bg4 {[%emt 0:00:06]} Kd8 {[%emt 0:00:09]} 26. Ba3 {[%emt 0:00:05]} Nxf6 {[%emt 0:01:11]} 27. Bxf8 {[%emt 0:00:13]} Nxg4 {[%emt 0:00:01]} 28. Rg1 {[%emt 0:00:48]} Nxf2 {[%emt 0:00:57]} 29. Ke3 {[%emt 0:01:07]} Nh3 {[%emt 0:00:25]} 30. Rg3 {[%emt 0:00:05]} Ke8 {[%emt 0:00:42]} 31. Ba3 {[%emt 0:00:06]} d4+ {[%emt 0:00:36]} 32. Kf3 {[%emt 0:00:05]} 1-0

[Event "HUN-ch U8-U18 2019"]
[Site "Balatonlelle"]
[Date "2019.06.24"]
[Round "4.13"]
[White "Bilku, Andras"]
[Black "Csidey, Csongor"]
[Result "1/2-1/2"]
[ECO "D36"]
[WhiteElo "1907"]
[BlackElo "1708"]
[Annotator "NA"]
[PlyCount "84"]
[EventDate "2019.06.21"]
[EventType "swiss"]
[EventCountry "HUN"]
[SourceTitle "playchess.com"]
[Source "ChessBase"]
[SourceQuality "1"]
[TimeControl "40/5400+30:1800+30"]

1. d4 {[%emt 0:00:01]} Nf6 {[%emt 0:00:08]} 2. c4 {[%emt 0:00:02]} e6 {[%emt 0:00:05]} 3. Nc3 {[%emt 0:00:03]} d5 {[%emt 0:00:09]} 4. cxd5 {[%emt 0:00:13]} exd5 {[%emt 0:00:22]} 5. Bg5 {[%emt 0:00:08]} c6 {[%emt 0:00:39]} 6. Qc2 {[%emt 0:00:10]} h6 {[%emt 0:01:29]} 7. Bh4 {[%emt 0:00:15]} Be6 {[%emt 0:03:00]} 8. e3 {[%emt 0:00:08]} Be7 {[%emt 0:01:09]} 9. Bd3 {[%emt 0:00:13]} Nbd7 {[%emt 0:11:45]} 10. Nf3 {[%emt 0:00:55]} O-O {[%emt 0:03:31]} 11. h3 {[%emt 0:00:55]} Re8 {[%emt 0:05:11]} 12. O-O {[%emt 0:00:20]} Qc7 {[%emt 0:09:57]} 13. Bg3 {[%emt 0:00:15]} Qd8 {[%emt 0:03:30]} 14. Ne5 {[%emt 0:00:46]} Nxe5 {[%emt 0:02:56]} 15. dxe5 {[%emt 0:00:10]} Nd7 {[%emt 0:00:14]} 16. f4 {[%emt 0:00:07]} Nc5 {[%emt 0:00:24]} 17. Rad1 {[%emt 0:07:56]} Nxd3 {[%emt 0:00:42]} 18. Qxd3 {[%emt 0:00:06]} g6 {[%emt 0:01:37]} 19. Bh2 {[%emt 0:02:25]} h5 {[%emt 0:05:46]} 20. Qe2 {[%emt 0:08:07]} h4 {[%emt 0:05:29]} 21. Kh1 {[%emt 0:03:24]} Kg7 {[%emt 0:01:13]} 22. e4 {[%emt 0:00:26]} Qc8 {[%emt 0:04:31]} 23. Qf2 {[%emt 0:14:18]} dxe4 {[%emt 0:08:38]} 24. Nxe4 {[%emt 0:00:05]} Bxa2 {[%emt 0:03:09]} 25. Nf6 {[%emt 0:00:13]} Rh8 {[%emt 0:08:08]} 26. Rd7 {[%emt 0:00:15]} Bxf6 {[%emt 0:00:19]} 27. exf6+ {[%emt 0:00:05]} Kg8 {[%emt 0:00:21]} 28. Qd4 {[%emt 0:00:06]} Bd5 {[%emt 0:00:19]} 29. Re7 {[%emt 0:00:34]} Qxh3 {[%emt 0:05:09]} 30. Qxd5 {[%emt 0:00:55]} Qxh2+ {[%emt 0:00:07]} 31. Kxh2 {[%emt 0:00:02]} cxd5 {[%emt 0:00:05]} 32. f5 {[%emt 0:00:49]} g5 {[%emt 0:01:20]} 33. Kh3 {[%emt 0:01:33]} Rh6 {[%emt 0:00:07]} 34. Kg4 {[%emt 0:00:13]} Rxf6 {[%emt 0:00:07]} 35. Rxb7 {[%emt 0:00:28]} Rb6 {[%emt 0:03:15]} 36. Rxb6 {[%emt 0:00:18]} axb6 {[%emt 0:00:05]} 37. Kxg5 {[%emt 0:00:10]} Ra4 {[%emt 0:00:03]} 38. Rd1 {[%emt 0:00:28]} Rb4 {[%emt 0:01:07]} 39. Rd2 {[%emt 0:00:48]} Kg7 {[%emt 0:04:26]} 40. f6+ {[%emt 0:00:00]} Kh7 {[%emt 0:00:00]} 41. Kh5 {[%emt 0:03:45]} Rf4 {[%emt 0:03:32]} 42. Kg5 {[%emt 0:02:26]} Rb4 {[%emt 0:00:03]} 1/2-1/2

[Event "HUN-ch U8-U18 2019"]
[Site "Balatonlelle"]
[Date "2019.06.24"]
[Round "4.14"]
[White "Kokeny, Norbert Adrian"]
[Black "Vanczak, Tamas"]
[Result "0-1"]
[ECO "A04"]
[WhiteElo "2268"]
[BlackElo "2311"]
[Annotator "NA"]
[PlyCount "130"]
[EventDate "2019.06.21"]
[EventType "swiss"]
[EventCountry "HUN"]
[SourceTitle "playchess.com"]
[Source "ChessBase"]
[SourceQuality "1"]
[TimeControl "40/5400+30:1800+30"]

1. Nf3 {[%emt 0:00:06]} f5 {[%emt 0:01:29]} 2. g3 {[%emt 0:00:12]} b6 {[%emt 0:00:15]} 3. Bg2 {[%emt 0:00:23]} Bb7 {[%emt 0:00:08]} 4. b3 {[%emt 0:00:11]} Nf6 {[%emt 0:00:26]} 5. Bb2 {[%emt 0:00:06]} e6 {[%emt 0:00:40]} 6. O-O {[%emt 0:00:40]} Be7 {[%emt 0:00:32]} 7. c4 {[%emt 0:01:23]} O-O {[%emt 0:00:28]} 8. d4 {[%emt 0:01:16]} Ne4 {[%emt 0:04:53]} 9. Nbd2 {[%emt 0:02:34]} d6 {[%emt 0:07:13]} 10. Ne1 {[%emt 0:02:54]} Nd7 {[%emt 0:02:37]} 11. Nxe4 {[%emt 0:03:54]} Bxe4 {[%emt 0:03:01]} 12. Bxe4 {[%emt 0:05:04]} fxe4 {[%emt 0:00:09]} 13. Ng2 {[%emt 0:00:03]} Bg5 {[%emt 0:03:53]} 14. Qc2 {[%emt 0:06:17]} Nf6 {[%emt 0:02:06]} 15. f3 {[%emt 0:00:53]} exf3 {[%emt 0:15:50]} 16. exf3 {[%emt 0:00:41]} Bh6 {[%emt 0:01:56]} 17. Rae1 {[%emt 0:00:31]} Qd7 {[%emt 0:00:48]} 18. Re2 {[%emt 0:03:05]} Rae8 {[%emt 0:01:54]} 19. Rfe1 {[%emt 0:01:09]} Qf7 {[%emt 0:01:15]} 20. Qd3 {[%emt 0:06:10]} Nd7 {[%emt 0:04:13]} 21. f4 {[%emt 0:02:45]} g6 {[%emt 0:08:09]} 22. Re3 {[%emt 0:12:32]} Re7 {[%emt 0:03:44]} 23. Qe2 {[%emt 0:04:44]} Rfe8 {[%emt 0:00:28]} 24. Nh4 {[%emt 0:03:44]} Bg7 {[%emt 0:08:02]} 25. Nf3 {[%emt 0:01:15]} Bf6 {[%emt 0:02:03]} 26. Qd2 {[%emt 0:10:25]} Qg7 {[%emt 0:09:04]} 27. R1e2 {[%emt 0:00:29]} a5 {[%emt 0:01:19]} 28. Qe1 {[%emt 0:00:39]} Qf7 {[%emt 0:01:25]} 29. Bc3 {[%emt 0:01:06]} h6 {[%emt 0:03:57]} 30. h4 {[%emt 0:02:22]} Bg7 {[%emt 0:01:33]} 31. Nh2 {[%emt 0:05:07]} c5 {[%emt 0:02:30]} 32. Nf3 {[%emt 0:01:39]} Qf5 {[%emt 0:02:47]} 33. a3 {[%emt 0:06:05]} cxd4 {[%emt 0:00:42]} 34. Bxd4 {[%emt 0:01:13]} Bxd4 {[%emt 0:00:13]} 35. Nxd4 {[%emt 0:00:23]} Qc5 {[%emt 0:00:20]} 36. Nb5 {[%emt 0:00:31]} e5 {[%emt 0:03:09]} 37. b4 {[%emt 0:00:51]} Qc6 {[%emt 0:00:27]} 38. Rd2 {[%emt 0:01:13]} d5 {[%emt 0:00:41]} 39. Rxd5 {[%emt 0:02:07]} Qxc4 {[%emt 0:00:18]} 40. Qd1 {[%emt 0:00:00]} Nf6 {[%emt 0:00:00]} 41. Rd6 {[%emt 0:10:17]} Kg7 {[%emt 0:07:03]} 42. a4 {[%emt 0:09:46]} Qxb4 {[%emt 0:03:12]} 43. Kh1 {[%emt 0:05:24]} exf4 {[%emt 0:04:22]} 44. Qa1 {[%emt 0:02:20]} Qe1+ {[%emt 0:00:34]} 45. Qxe1 {[%emt 0:00:47]} Rxe3 {[%emt 0:00:05]} 46. Qf2 {[%emt 0:00:57]} Re1+ {[%emt 0:00:08]} 47. Kg2 {[%emt 0:00:01]} R8e2 {[%emt 0:00:22]} 48. Rxb6 {[%emt 0:01:15]} Rxf2+ {[%emt 0:00:10]} 49. Kxf2 {[%emt 0:00:04]} Ra1 {[%emt 0:02:22]} 50. Rb7+ {[%emt 0:00:25]} Kg8 {[%emt 0:00:59]} 51. gxf4 {[%emt 0:00:47]} Rxa4 {[%emt 0:01:25]} 52. Nd6 {[%emt 0:03:23]} Rxf4+ {[%emt 0:00:28]} 53. Kg3 {[%emt 0:00:15]} Nh5+ {[%emt 0:00:51]} 54. Kh3 {[%emt 0:00:08]} a4 {[%emt 0:06:16]} 55. Ra7 {[%emt 0:00:21]} Kf8 {[%emt 0:00:42]} 56. Nb5 {[%emt 0:01:57]} Rb4 {[%emt 0:02:09]} 57. Nc7 {[%emt 0:00:27]} Rb3+ {[%emt 0:02:08]} 58. Kh2 {[%emt 0:00:04]} a3 {[%emt 0:00:37]} 59. Nd5 {[%emt 0:00:09]} Rb2+ {[%emt 0:00:43]} 60. Kh3 {[%emt 0:00:23]} a2 {[%emt 0:00:45]} 61. Ne7 {[%emt 0:01:05]} Rb3+ {[%emt 0:03:24]} 62. Kh2 {[%emt 0:00:18]} Nf4 {[%emt 0:00:31]} 63. Nc6 {[%emt 0:00:55]} Rh3+ {[%emt 0:00:40]} 64. Kg1 {[%emt 0:00:08]} Rc3 {[%emt 0:00:44]} 65. Ra8+ {[%emt 0:01:01]} Kg7 {[%emt 0:00:10]} 0-1

[Event "HUN-ch U8-U18 2019"]
[Site "Balatonlelle"]
[Date "2019.06.24"]
[Round "4.14"]
[White "Gyurika, Tamas"]
[Black "Farkas, Otto Jr."]
[Result "1-0"]
[ECO "B02"]
[WhiteElo "1643"]
[BlackElo "1859"]
[Annotator "NA"]
[PlyCount "59"]
[EventDate "2019.06.21"]
[EventType "swiss"]
[EventCountry "HUN"]
[SourceTitle "playchess.com"]
[Source "ChessBase"]
[SourceQuality "1"]
[TimeControl "40/5400+30:1800+30"]

1. e4 {[%emt 0:00:02]} Nf6 {[%emt 0:00:05]} 2. Nc3 {[%emt 0:01:23]} d5 {[%emt 0:00:08]} 3. e5 {[%emt 0:01:10]} Nfd7 {[%emt 0:00:15]} 4. d4 {[%emt 0:02:17]} c5 {[%emt 0:00:54]} 5. dxc5 {[%emt 0:07:25]} e6 {[%emt 0:00:19]} 6. Nf3 {[%emt 0:01:00]} Nc6 {[%emt 0:03:03]} 7. Bf4 {[%emt 0:04:07]} Bxc5 {[%emt 0:00:42]} 8. Bd3 {[%emt 0:01:04]} h6 {[%emt 0:02:26]} 9. Qd2 {[%emt 0:00:39]} a6 {[%emt 0:05:25]} 10. O-O {[%emt 0:01:22]} g5 {[%emt 0:04:41]} 11. Bg3 {[%emt 0:04:32]} Be7 {[%emt 0:07:52]} 12. Ne2 {[%emt 0:04:51]} g4 {[%emt 0:02:59]} 13. Nfd4 {[%emt 0:00:17]} Ndxe5 {[%emt 0:01:10]} 14. Nxc6 {[%emt 0:00:55]} Nxc6 {[%emt 0:00:05]} 15. Qc3 {[%emt 0:00:35]} Bf6 {[%emt 0:01:03]} 16. Qc5 {[%emt 0:00:34]} Bd7 {[%emt 0:03:55]} 17. Nf4 {[%emt 0:02:04]} Bd4 {[%emt 0:06:46]} 18. Qa3 {[%emt 0:02:16]} Qe7 {[%emt 0:03:45]} 19. Qa4 {[%emt 0:02:36]} Be5 {[%emt 0:06:22]} 20. Rfe1 {[%emt 0:00:57]} Qg5 {[%emt 0:06:55]} 21. Bb5 {[%emt 0:05:44]} Rc8 {[%emt 0:08:17]} 22. Bxc6 {[%emt 0:00:51]} Bxc6 {[%emt 0:00:39]} 23. Qb4 {[%emt 0:00:36]} a5 {[%emt 0:06:53]} 24. Qd2 {[%emt 0:05:54]} Rg8 {[%emt 0:10:59]} 25. Rad1 {[%emt 0:00:51]} Bxf4 {[%emt 0:05:24]} 26. Bxf4 {[%emt 0:00:17]} Qf6 {[%emt 0:00:44]} 27. Be5 {[%emt 0:01:24]} Qg6 {[%emt 0:01:00]} 28. Qxa5 {[%emt 0:01:14]} Qxc2 {[%emt 0:06:18]} 29. Qb4 {[%emt 0:03:50]} Qf5 {[%emt 0:04:12]} 30. Qc5 {[%emt 0:00:55]} 1-0

[Event "HUN-ch U8-U18 2019"]
[Site "Balatonlelle"]
[Date "2019.06.24"]
[Round "4.15"]
[White "Udvardi, Zalan"]
[Black "Acs, Marton"]
[Result "1-0"]
[ECO "C54"]
[WhiteElo "2211"]
[BlackElo "2138"]
[Annotator "NA"]
[PlyCount "69"]
[EventDate "2019.06.21"]
[EventType "swiss"]
[EventCountry "HUN"]
[SourceTitle "playchess.com"]
[Source "ChessBase"]
[SourceQuality "1"]
[TimeControl "40/5400+30:1800+30"]

1. e4 {[%emt 0:00:07]} e5 {[%emt 0:00:13]} 2. Nf3 {[%emt 0:00:20]} Nc6 {[%emt 0:00:15]} 3. d4 {[%emt 0:00:26]} exd4 {[%emt 0:00:40]} 4. Bc4 {[%emt 0:00:12]} Bc5 {[%emt 0:00:00]} 5. c3 {[%emt 0:00:23]} Nf6 {[%emt 0:00:14]} 6. e5 {[%emt 0:00:11]} d5 {[%emt 0:00:49]} 7. Bb5 {[%emt 0:00:41]} Ne4 {[%emt 0:00:20]} 8. cxd4 {[%emt 0:00:07]} Bb6 {[%emt 0:00:21]} 9. Nc3 {[%emt 0:00:34]} O-O {[%emt 0:00:42]} 10. h3 {[%emt 0:15:46]} Ba5 {[%emt 0:13:11]} 11. Bd2 {[%emt 0:02:52]} Nxd2 {[%emt 0:01:17]} 12. Qxd2 {[%emt 0:00:16]} f6 {[%emt 0:00:24]} 13. Bxc6 {[%emt 0:07:45]} bxc6 {[%emt 0:01:01]} 14. O-O {[%emt 0:02:02]} fxe5 {[%emt 0:21:08]} 15. Nxe5 {[%emt 0:00:52]} Qf6 {[%emt 0:02:24]} 16. Rfe1 {[%emt 0:15:15]} Re8 {[%emt 0:10:20]} 17. Re3 {[%emt 0:15:28]} c5 {[%emt 0:12:19]} 18. Rae1 {[%emt 0:02:17]} Be6 {[%emt 0:15:01]} 19. dxc5 {[%emt 0:02:12]} Rad8 {[%emt 0:09:56]} 20. Qd4 {[%emt 0:05:16]} Bxc3 {[%emt 0:00:51]} 21. bxc3 {[%emt 0:00:14]} Bf5 {[%emt 0:01:22]} 22. Ng4 {[%emt 0:04:26]} Qf7 {[%emt 0:04:05]} 23. Rxe8+ {[%emt 0:01:08]} Rxe8 {[%emt 0:00:01]} 24. Rxe8+ {[%emt 0:00:12]} Qxe8 {[%emt 0:00:05]} 25. Qxd5+ {[%emt 0:00:09]} Be6 {[%emt 0:01:26]} 26. Qe4 {[%emt 0:01:26]} Qd7 {[%emt 0:01:38]} 27. Qa8+ {[%emt 0:00:23]} Qc8 {[%emt 0:00:19]} 28. Qxa7 {[%emt 0:00:53]} Qd8 {[%emt 0:01:12]} 29. Ne3 {[%emt 0:02:27]} h6 {[%emt 0:01:12]} 30. Qa6 {[%emt 0:00:51]} Bf7 {[%emt 0:00:46]} 31. a4 {[%emt 0:00:42]} Qd2 {[%emt 0:00:25]} 32. Qc8+ {[%emt 0:00:57]} Kh7 {[%emt 0:00:14]} 33. Qxc7 {[%emt 0:00:50]} Qe1+ {[%emt 0:00:24]} 34. Kh2 {[%emt 0:00:28]} Qxf2 {[%emt 0:00:06]} 35. Qe5 {[%emt 0:02:44]} 1-0

[Event "HUN-ch U8-U18 2019"]
[Site "Balatonlelle"]
[Date "2019.06.24"]
[Round "4.15"]
[White "Barsi, Botond"]
[Black "Kun, Balint"]
[Result "1/2-1/2"]
[ECO "D02"]
[WhiteElo "1850"]
[BlackElo "1813"]
[Annotator "NA"]
[PlyCount "50"]
[EventDate "2019.06.21"]
[EventType "swiss"]
[EventCountry "HUN"]
[SourceTitle "playchess.com"]
[Source "ChessBase"]
[SourceQuality "1"]
[TimeControl "40/5400+30:1800+30"]

1. d4 {[%emt 0:00:20]} d5 {[%emt 0:00:03]} 2. Nf3 {[%emt 0:00:08]} Nf6 {[%emt 0:00:04]} 3. Bf4 {[%emt 0:00:04]} c5 {[%emt 0:00:08]} 4. c3 {[%emt 0:00:07]} Nc6 {[%emt 0:00:17]} 5. e3 {[%emt 0:00:05]} Qb6 {[%emt 0:00:39]} 6. Qc2 {[%emt 0:00:09]} Bg4 {[%emt 0:01:09]} 7. Nbd2 {[%emt 0:00:59]} e6 {[%emt 0:01:31]} 8. h3 {[%emt 0:00:31]} Bf5 {[%emt 0:01:30]} 9. Qb3 {[%emt 0:03:24]} c4 {[%emt 0:01:04]} 10. Qxb6 {[%emt 0:00:22]} axb6 {[%emt 0:00:04]} 11. a3 {[%emt 0:00:22]} b5 {[%emt 0:02:06]} 12. Rc1 {[%emt 0:01:14]} h6 {[%emt 0:01:28]} 13. Be2 {[%emt 0:00:59]} Be7 {[%emt 0:01:41]} 14. O-O {[%emt 0:01:58]} O-O {[%emt 0:02:50]} 15. Bd1 {[%emt 0:01:02]} Nd7 {[%emt 0:05:53]} 16. Re1 {[%emt 0:02:45]} Rfe8 {[%emt 0:11:29]} 17. e4 {[%emt 0:03:16]} Bh7 {[%emt 0:01:10]} 18. Bc2 {[%emt 0:00:33]} Nb6 {[%emt 0:02:10]} 19. exd5 {[%emt 0:01:18]} exd5 {[%emt 0:00:18]} 20. Ne5 {[%emt 0:00:51]} Nxe5 {[%emt 0:03:33]} 21. Bxh7+ {[%emt 0:00:43]} Kxh7 {[%emt 0:00:14]} 22. Rxe5 {[%emt 0:00:09]} Bf6 {[%emt 0:01:06]} 23. Rf5 {[%emt 0:08:16]} Rac8 {[%emt 0:11:20]} 24. Kf1 {[%emt 0:04:10]} Red8 25. Rc2 Na4 1/2-1/2

[Event "HUN-ch U8-U18 2019"]
[Site "Balatonlelle"]
[Date "2019.06.24"]
[Round "4.16"]
[White "Kaloczi, Kristof"]
[Black "Miszler, Levente"]
[Result "0-1"]
[ECO "C06"]
[WhiteElo "2098"]
[BlackElo "2041"]
[Annotator "NA"]
[PlyCount "70"]
[EventDate "2019.06.21"]
[EventType "swiss"]
[EventCountry "HUN"]
[SourceTitle "playchess.com"]
[Source "ChessBase"]
[SourceQuality "1"]
[TimeControl "40/5400+30:1800+30"]

1. e4 {[%emt 0:00:02]} e6 {[%emt 0:00:07]} 2. d4 {[%emt 0:00:04]} d5 {[%emt 0:00:06]} 3. Nd2 {[%emt 0:00:05]} Nf6 {[%emt 0:00:07]} 4. e5 {[%emt 0:00:05]} Nfd7 {[%emt 0:00:06]} 5. Bd3 {[%emt 0:00:10]} c5 {[%emt 0:00:07]} 6. c3 {[%emt 0:00:04]} Nc6 {[%emt 0:00:08]} 7. Ne2 {[%emt 0:00:04]} cxd4 {[%emt 0:00:09]} 8. cxd4 {[%emt 0:00:02]} f6 {[%emt 0:00:09]} 9. exf6 {[%emt 0:00:04]} Nxf6 {[%emt 0:00:06]} 10. Nf3 {[%emt 0:00:07]} Bd6 {[%emt 0:00:14]} 11. O-O {[%emt 0:00:06]} O-O {[%emt 0:00:08]} 12. Bf4 {[%emt 0:00:34]} Bxf4 {[%emt 0:00:08]} 13. Nxf4 {[%emt 0:00:04]} Ne4 {[%emt 0:00:21]} 14. Qc1 {[%emt 0:02:38]} Qf6 {[%emt 0:00:41]} 15. Nh5 {[%emt 0:03:12]} Qf5 {[%emt 0:05:38]} 16. Ng3 {[%emt 0:00:37]} Nxg3 {[%emt 0:00:53]} 17. Bxf5 {[%emt 0:35:26]} Ne2+ {[%emt 0:00:12]} 18. Kh1 {[%emt 0:00:02]} Nxc1 19. Bc2 {[%emt 0:01:33]} Ne2 {[%emt 0:00:31]} 20. Rad1 {[%emt 0:02:43]} Nf4 {[%emt 0:02:42]} 21. Rfe1 {[%emt 0:02:17]} Rf6 {[%emt 0:04:55]} 22. Re3 {[%emt 0:02:45]} Bd7 {[%emt 0:02:04]} 23. Rde1 {[%emt 0:01:29]} Rc8 {[%emt 0:01:42]} 24. Bb1 {[%emt 0:00:53]} Ng6 {[%emt 0:02:32]} 25. a3 {[%emt 0:00:32]} Nge7 {[%emt 0:01:15]} 26. h3 {[%emt 0:04:19]} Nf5 {[%emt 0:01:54]} 27. Rd3 {[%emt 0:00:07]} Na5 {[%emt 0:01:19]} 28. g4 {[%emt 0:02:44]} Nd6 {[%emt 0:01:08]} 29. Kg2 {[%emt 0:01:44]} Ne4 {[%emt 0:05:35]} 30. b3 {[%emt 0:01:16]} Rcf8 {[%emt 0:01:46]} 31. Rde3 {[%emt 0:02:20]} Nd2 {[%emt 0:00:51]} 32. Nxd2 {[%emt 0:00:40]} Rxf2+ {[%emt 0:00:06]} 33. Kg3 {[%emt 0:00:32]} Rxd2 {[%emt 0:00:06]} 34. Bd3 {[%emt 0:00:56]} Nc6 {[%emt 0:00:40]} 35. g5 {[%emt 0:02:07]} Nxd4 {[%emt 0:00:20]} 0-1

[Event "HUN-ch U8-U18 2019"]
[Site "Balatonlelle"]
[Date "2019.06.24"]
[Round "4.16"]
[White "Torok, Csaba"]
[Black "Szalay-Ocsak, Bank"]
[Result "0-1"]
[ECO "B29"]
[WhiteElo "1579"]
[BlackElo "1826"]
[Annotator "NA"]
[PlyCount "38"]
[EventDate "2019.06.21"]
[EventType "swiss"]
[EventCountry "HUN"]
[SourceTitle "playchess.com"]
[Source "ChessBase"]
[SourceQuality "1"]
[TimeControl "40/5400+30:1800+30"]

1. e4 {[%emt 0:04:30]} c5 {[%emt 0:00:06]} 2. Nf3 {[%emt 0:00:13]} Nf6 {[%emt 0:00:05]} 3. Nc3 {[%emt 0:04:26]} d5 {[%emt 0:00:08]} 4. exd5 {[%emt 0:15:29]} Nxd5 {[%emt 0:00:08]} 5. d4 {[%emt 0:00:10]} Nxc3 {[%emt 0:05:50]} 6. bxc3 {[%emt 0:00:17]} g6 {[%emt 0:10:14]} 7. Be3 {[%emt 0:06:31]} Bg7 {[%emt 0:03:20]} 8. Qd2 {[%emt 0:03:09]} Qa5 {[%emt 0:04:31]} 9. Be2 {[%emt 0:12:37]} O-O {[%emt 0:03:32]} 10. O-O {[%emt 0:02:38]} Rd8 {[%emt 0:07:26]} 11. Bh6 {[%emt 0:09:15]} Bh8 {[%emt 0:01:35]} 12. Qe3 {[%emt 0:09:40]} Nc6 {[%emt 0:08:26]} 13. Ne5 {[%emt 0:00:59]} Qa4 {[%emt 0:11:37]} 14. Nxc6 {[%emt 0:06:27]} Qxc6 {[%emt 0:00:42]} 15. Bf3 {[%emt 0:00:15]} cxd4 {[%emt 0:07:40]} 16. Qxe7 {[%emt 0:05:46]} Re8 {[%emt 0:01:40]} 17. Bxc6 {[%emt 0:06:31]} Rxe7 {[%emt 0:00:08]} 18. Rfe1 {[%emt 0:04:00]} Be6 {[%emt 0:03:05]} 19. Bxb7 {[%emt 0:00:41]} Rxb7 {[%emt 0:01:14]} 0-1

[Event "HUN-ch U8-U18 2019"]
[Site "Balatonlelle"]
[Date "2019.06.24"]
[Round "4.17"]
[White "Tancsa, Tamas"]
[Black "Palczert, Matyas"]
[Result "1/2-1/2"]
[ECO "B49"]
[WhiteElo "2158"]
[BlackElo "2007"]
[Annotator "NA"]
[PlyCount "63"]
[EventDate "2019.06.21"]
[EventType "swiss"]
[EventCountry "HUN"]
[SourceTitle "playchess.com"]
[Source "ChessBase"]
[SourceQuality "1"]
[TimeControl "40/5400+30:1800+30"]

1. e4 {[%emt 0:00:01]} c5 {[%emt 0:00:06]} 2. Nf3 {[%emt 0:00:09]} e6 {[%emt 0:00:08]} 3. d4 {[%emt 0:00:07]} cxd4 {[%emt 0:00:07]} 4. Nxd4 {[%emt 0:00:07]} Nc6 {[%emt 0:00:09]} 5. Nc3 {[%emt 0:00:46]} Qc7 {[%emt 0:00:23]} 6. Be3 {[%emt 0:01:17]} a6 {[%emt 0:00:40]} 7. Be2 {[%emt 0:02:27]} Nf6 {[%emt 0:02:10]} 8. O-O {[%emt 0:01:04]} Be7 {[%emt 0:07:19]} 9. f4 {[%emt 0:02:51]} d6 {[%emt 0:00:56]} 10. Bf3 {[%emt 0:01:28]} O-O {[%emt 0:02:34]} 11. Qd2 {[%emt 0:03:20]} Bd7 {[%emt 0:05:53]} 12. a3 {[%emt 0:06:13]} Rfd8 {[%emt 0:06:24]} 13. Rac1 {[%emt 0:01:28]} Rac8 {[%emt 0:05:05]} 14. Na2 {[%emt 0:01:12]} Nxd4 {[%emt 0:02:10]} 15. Bxd4 {[%emt 0:02:05]} Bc6 {[%emt 0:02:30]} 16. Qe3 {[%emt 0:00:42]} Nd7 {[%emt 0:05:01]} 17. b4 {[%emt 0:02:14]} Bb5 {[%emt 0:03:26]} 18. Rfe1 {[%emt 0:10:09]} Bc4 {[%emt 0:00:22]} 19. Nc3 {[%emt 0:00:29]} e5 {[%emt 0:04:50]} 20. Nd5 {[%emt 0:01:10]} Bxd5 {[%emt 0:00:54]} 21. exd5 {[%emt 0:00:51]} exd4 {[%emt 0:09:12]} 22. Qxe7 {[%emt 0:00:59]} Ne5 {[%emt 0:04:50]} 23. Qxc7 {[%emt 0:02:31]} Nxf3+ {[%emt 0:01:22]} 24. Kf2 {[%emt 0:03:39]} Rxc7 {[%emt 0:00:13]} 25. Kxf3 {[%emt 0:00:05]} Rdc8 {[%emt 0:00:42]} 26. Ke4 {[%emt 0:04:05]} Kf8 {[%emt 0:00:50]} 27. Kxd4 {[%emt 0:01:32]} Rxc2 {[%emt 0:00:15]} 28. Rxc2 {[%emt 0:00:00]} Rxc2 {[%emt 0:00:03]} 29. a4 {[%emt 0:00:22]} b5 {[%emt 0:02:20]} 30. axb5 {[%emt 0:00:52]} axb5 {[%emt 0:00:08]} 31. Kd3 {[%emt 0:01:08]} Rc4 {[%emt 0:00:45]} 32. Re4 {[%emt 0:00:18]} 1/2-1/2

[Event "HUN-ch U8-U18 2019"]
[Site "Balatonlelle"]
[Date "2019.06.24"]
[Round "4.17"]
[White "Horvath, Balazs"]
[Black "Kresz, Adam"]
[Result "1/2-1/2"]
[ECO "D02"]
[WhiteElo "2139"]
[BlackElo "1949"]
[Annotator "NA"]
[PlyCount "63"]
[EventDate "2019.06.21"]
[EventType "swiss"]
[EventCountry "HUN"]
[SourceTitle "playchess.com"]
[Source "ChessBase"]
[SourceQuality "1"]
[TimeControl "40/5400+30:1800+30"]

1. Nf3 {[%emt 0:00:58]} d5 {[%emt 0:00:29]} 2. d4 {[%emt 0:00:20]} Nf6 {[%emt 0:00:16]} 3. g3 {[%emt 0:00:12]} Bf5 {[%emt 0:00:45]} 4. Bg2 {[%emt 0:01:34]} h6 {[%emt 0:00:59]} 5. O-O {[%emt 0:01:57]} e6 {[%emt 0:00:40]} 6. b3 {[%emt 0:02:57]} Bd6 {[%emt 0:03:58]} 7. Bb2 {[%emt 0:01:00]} Nbd7 {[%emt 0:02:27]} 8. c4 {[%emt 0:02:35]} c6 {[%emt 0:00:42]} 9. Nbd2 {[%emt 0:02:04]} O-O {[%emt 0:05:30]} 10. Re1 {[%emt 0:07:35]} Ne4 {[%emt 0:01:55]} 11. Nxe4 {[%emt 0:07:04]} Bxe4 {[%emt 0:00:10]} 12. e3 {[%emt 0:10:49]} Qf6 {[%emt 0:24:21]} 13. Nd2 {[%emt 0:04:34]} Bxg2 {[%emt 0:00:19]} 14. Kxg2 {[%emt 0:00:07]} Bb4 {[%emt 0:18:53]} 15. a3 {[%emt 0:02:42]} Bxd2 {[%emt 0:00:08]} 16. Qxd2 {[%emt 0:00:05]} Qg6 {[%emt 0:02:10]} 17. Rac1 {[%emt 0:00:53]} a5 {[%emt 0:03:01]} 18. a4 {[%emt 0:07:49]} f5 {[%emt 0:05:22]} 19. c5 {[%emt 0:10:45]} Qh5 {[%emt 0:03:52]} 20. h4 {[%emt 0:01:48]} Nf6 {[%emt 0:02:56]} 21. f3 {[%emt 0:05:13]} g5 {[%emt 0:03:12]} 22. hxg5 {[%emt 0:00:43]} hxg5 {[%emt 0:00:31]} 23. Rh1 {[%emt 0:00:49]} Qg6 {[%emt 0:00:24]} 24. Rh2 {[%emt 0:04:11]} g4 {[%emt 0:02:01]} 25. f4 {[%emt 0:06:12]} Ne4 {[%emt 0:00:53]} 26. Qc2 {[%emt 0:06:25]} Kg7 {[%emt 0:04:46]} 27. Rch1 {[%emt 0:00:52]} Rh8 {[%emt 0:00:29]} 28. Bc3 {[%emt 0:00:47]} Rxh2+ {[%emt 0:10:05]} 29. Rxh2 {[%emt 0:00:07]} Rh8 {[%emt 0:00:11]} 30. Rxh8 {[%emt 0:00:25]} Kxh8 {[%emt 0:00:05]} 31. Be1 {[%emt 0:00:41]} Qe8 {[%emt 0:01:12]} 32. Qb2 {[%emt 0:09:43]} 1/2-1/2